Cogmind - Beta 16 @@@ ROGUE MODE // 2025.11.01 @ 13:46:21 Player: Petvaria Result: Escaped! Performance ------------- Evolutions (9) 4500 Regions Visited (32) 6400 Robots Destroyed (122) 610 Value Destroyed (4718) 4718 Prototype IDs (73) 1460 Alien Tech Used (1) 200 Bonus (14108) 14108 TOTAL SCORE: 31996 Bonus ------- Triggered Max Security 2000 High Alert Combat Kills 237 Follower Combat Kills 60 Entered Garrisons 600 Aligned with FarCom 300 Met Data Miner 300 Acquired ECA 300 Met Warlord at Base 500 MAIN.C Attacked Warlord 500 Met Warlord at Research 2000 Invited to Help at Command 2000 Destroyed MAIN.C Guards 500 Met Warlord at Command 2000 Win 3000 Friendly Fire -189 Cogmind --------- Core Integrity 304/1600 Matter 297/300 Energy 234/240 System Corruption 19% Temperature Cool (15) Movement Flying (28) Location To Epsilon Eridani Parts ------- > --- POWER (2) -------- Zero-point Reactor > --- PROPULSION (7) --- Impulse Thruster Impulse Thruster Improved Diametric Drive Impulse Thruster Array (fused) Impulse Thruster Array > --- UTILITY (11) ----- Advanced Coolant Injector Quantum Shading Machine Graphene Brace Advanced Thermal Shield Makeshift Hacking Suite Advanced Hacking Suite Advanced Hacking Suite Advanced Hacking Suite > --- WEAPON (5) ------- Power Sword > --- INVENTORY (5) ---- Experimental Energy Well (600) Enhanced Nova Cannon Enhanced Nova Cannon Enhanced Nova Cannon Fusion Bomb Launcher Peak State ------------ > --- POWER ------------ Quantum Reactor > --- PROPULSION ------- Cooled VTOL Module Q-thruster Improved Diametric Drive Impulse Thruster Array Improved Q-thruster Cooled Q-thruster > --- UTILITY ---------- Medium Storage Unit Advanced Target Analyzer Quantum Capacitor Advanced Point Defense System Makeshift Hacking Suite Makeshift Hacking Suite Advanced Hacking Suite Advanced Hacking Suite Advanced Hacking Suite Ghost Barrier > --- WEAPON ----------- Gamma Rifle Vortex Shotgun Phasing Sabre > --- INVENTORY -------- Backup Power III Quantum Reactor Impulse Thruster Array Impulse Thruster Array Graphene Brace Gamma Rifle Vortex Shotgun Gamma Bomb Array [Rating: 162] Favorites ----------- Power Backup Power III Engine Backup Power III Power Core Light Fission Core Reactor Quantum Reactor Propulsion Cooled VTOL Module Treads Light Treads Leg Aluminum Leg Wheel Compact Wheel Flight Unit Cooled VTOL Module Utility Makeshift Hacking Suite Device Advanced Sensor Array Storage Medium Storage Unit Processor Advanced Target Analyzer Hackware Makeshift Hacking Suite Protection Light Armor Plating Weapon Improved Datajack Energy Gun Particle Gun Energy Cannon Enhanced Nova Cannon Ballistic Gun Assault Rifle Ballistic Cannon Gauss Cannon Launcher Gamma Bomb Array Slashing Weapon Ripper Special Melee Weapon Improved Datajack Build | -11 -10 -10 -10 -9 -8 -8 -8 -8 -8 -7 -7 -7 -7 -7 -7 -6 -6 -5 -5 -5 -5 -4 -4 -4 -4 -4 -3 -3 -2 -2 -1 -1 ------- Run | Yrd Mat Min Exi Min Mat Gar Mat Gar Mat Fac Gar Fac Low Low Dat Pro Fac Fac Upp Upp War Pro Fac Upp Upp Zhi Pro Res Res Tes Acc Com Slots Evolved 18 | . . . . . 4 . . . . 2 . . . . . . 2 2 . . . . 2 . . . . 2 2 . 2 . Power 1 | . . . . . . . . . . . . . . . . . . 1 . . . . . . . . . . . . . . Propulsion 5 | . . . . . 2 . . . . 1 . . . . . . . . . . . . . . . . . 1 1 . . . Utility 9 | . . . . . 2 . . . . 1 . . . . . . 2 1 . . . . . . . . . . 1 . 2 . Weapon 3 | . . . . . . . . . . . . . . . . . . . . . . . 2 . . . . 1 . . . . Parts Attached 167 | 6 8 6 1 1 30 6 6 5 3 4 8 6 6 . . . 6 1 1 . 4 . . . . 2 . 2 9 . 8 38 Power 20 | 1 1 1 . . 3 . 1 1 1 . 3 . . . . . 1 . . . . . . . . 1 . . 1 . 2 3 Engine 5 | 1 1 1 . . 1 . . . 1 . . . . . . . . . . . . . . . . . . . . . . . Core 8 | . . . . . 2 . 1 1 . . 3 . . . . . 1 . . . . . . . . . . . . . . . Reactor 7 | . . . . . . . . . . . . . . . . . . . . . . . . . . 1 . . 1 . 2 3 Propulsion 51 | 2 1 2 . . 10 4 2 4 . 1 3 3 . . . . 1 . . . 1 . . . . . . 1 2 . 3 11 Treads 18 | 2 1 2 . . 7 4 2 . . . . . . . . . . . . . . . . . . . . . . . . . Leg 2 | . . . . . 2 . . . . . . . . . . . . . . . . . . . . . . . . . . . Wheel 1 | . . . . . 1 . . . . . . . . . . . . . . . . . . . . . . . . . . . Hover . | . . . . . . . . . . . . . . . . . . . . . . . . . . . . . . . . . Flight 30 | . . . . . . . . 4 . 1 3 3 . . . . 1 . . . 1 . . . . . . 1 2 . 3 11 Utility 49 | 1 2 . . 1 5 2 1 . 2 2 . 2 5 . . . 4 1 1 . 1 . . . . 1 . . 5 . 3 10 Device 18 | . . . . . 2 . . . . . . 1 1 . . . 2 . . . . . . . . . . . 2 . 1 9 Storage 3 | 1 1 . . . . . . . 1 . . . . . . . . . . . . . . . . . . . . . . . Processor 4 | . . . . . . . . . . . . . . . . . 1 . 1 . . . . . . . . . 1 . 1 . Hackware 18 | . . . . . . 2 . . 1 2 . 1 4 . . . 1 1 . . 1 . . . . 1 . . 2 . 1 1 Protection 6 | . 1 . . 1 3 . 1 . . . . . . . . . . . . . . . . . . . . . . . . . Artifact . | . . . . . . . . . . . . . . . . . . . . . . . . . . . . . . . . . Weapon 47 | 2 4 3 1 . 12 . 2 . . 1 2 1 1 . . . . . . . 2 . . . . . . 1 1 . . 14 Energy Gun 13 | 1 2 . . . 3 . . . . . . . . . . . . . . . 1 . . . . . . 1 . . . 5 Energy Cannon 5 | . . . . . . . . . . . . . . . . . . . . . 1 . . . . . . . . . . 4 Ballistic Gun 14 | 1 2 2 . . 7 . 1 . . . 1 . . . . . . . . . . . . . . . . . . . . . Ballistic Cannon 5 | . . . . . 2 . 1 . . . 1 . . . . . . . . . . . . . . . . . . . . 1 Launcher 2 | . . . . . . . . . . . . . . . . . . . . . . . . . . . . . . . . 2 Special Weapon . | . . . . . . . . . . . . . . . . . . . . . . . . . . . . . . . . . Impact Weapon . | . . . . . . . . . . . . . . . . . . . . . . . . . . . . . . . . . Slashing Weapon 6 | . . . 1 . . . . . . . . 1 1 . . . . . . . . . . . . . . . 1 . . 2 Piercing Weapon . | . . . . . . . . . . . . . . . . . . . . . . . . . . . . . . . . . Special Melee Weapon 2 | . . 1 . . . . . . . 1 . . . . . . . . . . . . . . . . . . . . . . Unidentified Prototypes 14 | . . . . . . . . 1 . . . . . . . . 1 . . . 3 . . . . 2 . 1 1 . 1 4 Corrupted Parts 1 | . . 1 . . . . . . . . . . . . . . . . . . . . . . . . . . . . . . System Corruption 6 | . . 6 . . . . . . . . . . . . . . . . . . . . . . . . . . . . . . Parts Lost 76 | . 2 3 . . 22 6 5 3 . . 3 . . . . . . . . . . . . . . . . . . . 5 27 Power 10 | . . . . . 2 . 1 2 . . . . . . . . . . . . . . . . . . . . . . 2 3 Propulsion 31 | . . 1 . . 8 4 3 . . . 2 . . . . . . . . . . . . . . . . . . . 2 11 Utility 18 | . . 1 . . 5 2 . 1 . . . . . . . . . . . . . . . . . . . . . . . 9 Weapon 17 | . 2 1 . . 7 . 1 . . . 1 . . . . . . . . . . . . . . . . . . . 1 4 Highest Loss Streak 13 | . 2 3 . . 9 2 5 2 . . 1 . . . . . . . . . . . . . . . . . . . 3 13 To Critical Strikes 1 | . . . . . . . . . . . . . . . . . . . . . . . . . . . . . . . 1 . Average Backups 9 | 3 10 14 14 12 13 14 14 5 4 5 9 8 10 10 10 10 9 9 9 9 8 6 6 6 6 6 6 6 7 7 6 5 Power . | . 1 . . . . . . . . . 1 1 1 1 1 1 . 1 1 1 1 1 1 1 1 1 1 1 1 1 . . Propulsion 3 | . 4 3 2 2 4 6 6 1 1 1 4 4 4 4 4 4 4 5 5 5 4 2 2 2 2 2 2 2 3 3 2 . Utility 2 | . . 3 4 3 4 2 2 2 2 1 1 2 3 3 3 3 3 2 1 1 . . . . . . . . . 1 1 1 Weapon 2 | 1 3 6 8 7 4 5 5 1 1 1 . 1 1 1 1 1 . . . . . 3 3 3 3 2 3 2 2 2 2 1 Tool/Special . | . . . . . . . . . . . . . . . . . . . . . . . . . . . . . . . . . Unused Backups 25 | . 1 2 . . 6 . . 3 2 1 1 3 . . . . 1 . . . 2 . . . . . . . 1 . . 2 Power 1 | . . . . . . . . . . . . 1 . . . . . . . . . . . . . . . . . . . . Propulsion 8 | . . 2 . . . . . 1 . 1 . 2 . . . . . . . . 1 . . . . . . . 1 . . . Utility 5 | . . . . . . . . . 2 . . . . . . . 1 . . . . . . . . . . . . . . 2 Weapon 10 | . 1 . . . 6 . . 2 . . 1 . . . . . . . . . . . . . . . . . . . . . Tool/Special 1 | . . . . . . . . . . . . . . . . . . . . . 1 . . . . . . . . . . . Average Slot Usage (%) 82 | . 87 96 59 89 74 91 69 70 63 79 89 93 97 100 100 100 98 86 94 94 99 100 89 89 89 88 89 84 85 86 86 63 Engine 5 | . 14 14 14 14 3 9 4 . 8 7 1 . . . . . . . . . 4 5 5 5 5 5 5 4 4 4 4 . Core 2 | . . . . . 2 . 3 8 . . 5 7 7 7 7 7 6 5 5 5 5 5 5 5 5 5 5 4 . . . . Treads 9 | . 28 26 28 28 25 28 21 . . . . . . . . . . . . . . . . . . . . . . . . . Flight 18 | . . . . . . . . 35 36 33 38 38 38 38 38 38 33 29 29 29 29 29 26 26 26 26 26 27 29 30 27 18 Device 4 | . . . . . 5 7 . . . . . 1 . . . . 9 5 5 5 5 5 5 5 5 4 5 4 6 8 7 11 Storage 7 | . 14 14 14 14 9 9 9 . . 7 7 7 7 7 7 7 6 5 5 5 5 5 5 5 5 5 5 4 4 4 4 1 Processor 1 | . . . . . . . . . . . . . . . . . 1 . 4 5 5 5 5 5 5 5 5 4 2 4 7 4 Hackware 15 | . . . . . . 13 9 9 9 23 23 23 27 30 30 30 26 27 29 29 29 29 26 26 26 26 26 23 24 21 23 19 Protection 1 | . 2 12 . 4 5 . 3 7 . . . . . . . . . . . . . . . . . . . . . . . . Energy Gun 1 | . 9 . . . 3 4 . . . . . . . . . . . . . . . . . . . . . . . . . . Ballistic Gun 5 | . 17 25 2 27 13 . 12 . . . 3 1 . . . . . . . . . . . . . . . . . . . . Slashing Weapon 3 | . . . . . . 4 . 8 9 7 2 5 7 7 7 7 6 5 5 5 5 5 5 5 5 5 5 3 4 4 4 3 Special Melee Weapon 2 | . . 1 . . . . . . . . 4 7 7 7 7 7 6 5 5 5 5 5 5 5 5 5 5 4 4 4 4 . Peak Build Rating 162 | 6 8 8 13 9 23 32 26 32 29 40 48 47 50 50 50 50 62 58 62 62 82 82 82 82 82 85 85 114 121 121 139 162 Average Rating 54 | 3 6 7 5 8 13 27 18 27 24 34 41 44 45 50 50 50 57 57 62 62 70 82 82 81 82 82 85 88 111 121 135 117 On Entrance 53 | . 6 8 7 6 9 21 26 19 23 29 37 43 43 50 50 50 50 54 58 62 62 82 82 82 82 82 85 85 90 121 121 137 Avg Prop Armor Cover (%) 13 | . . . . . 21 23 . . . . . . . . . . . . . . . . . . . . . . 2 . 1 . Naked Turns . | . . . . . . . . . . . . . . . . . . . . . . . . . . . . . . . . . Heaviest Build 56 | 13 28 29 29 32 44 40 39 37 16 17 22 22 20 20 20 20 23 22 22 22 24 24 24 24 24 24 24 24 37 37 39 56 Greatest Support 80 | 40 40 40 40 40 80 80 60 40 20 26 26 24 24 24 24 24 30 24 24 24 27 27 33 33 27 27 33 32 41 49 57 73 Greatest Overweight (x) 2 | . . 1 . . 2 2 1 . . . . . . . . . . . . . . . . . . . . . . . 1 2 Average Overweight (x) . | . . . . . . 1 . . . . . . . . . . . . . . . . . . . . . . . . . . Largest Inventory Capacity 15 | 8 15 15 15 15 15 15 15 15 10 10 10 10 10 10 10 10 10 10 10 10 10 10 10 10 10 10 10 10 10 10 10 10 Average Capacity 10 | 7 12 15 15 15 15 15 15 5 5 10 10 10 10 10 10 10 10 10 10 10 10 10 10 10 10 10 10 10 10 10 10 6 Most Carried 15 | 6 15 15 15 14 15 15 15 14 6 8 10 10 10 10 10 10 10 10 9 9 10 10 10 10 10 10 10 10 10 10 10 10 Average Carried 10 | 3 10 14 14 12 13 14 14 4 4 5 9 9 10 10 10 10 9 9 9 9 9 10 10 9 10 9 10 8 9 10 9 6 Final Capacity 15 | 8 15 15 15 15 15 15 15 5 10 10 10 10 10 10 10 10 10 10 10 10 10 10 10 10 10 10 10 10 10 10 10 5 Final Carried 15 | 4 15 12 15 13 15 15 14 4 4 8 10 10 10 10 10 10 10 10 9 9 10 10 10 10 10 10 10 10 10 10 7 5 Class Distribution -------------------- 28% | Hacker-Sprinter 24% | Mutant 20% | Wizard-Sprinter 11% | Scavenger-Mutant 5% | Hacker-Mutant 4% | Sprinter 3% | Wizard-Scout Dominant Class ---------------- Mutant | -10/Materials Mutant | -10/Mines Mutant | -10/Exiles Mutant | -9/Mines Scavenger-Mutant | -8/Materials Scavenger-Mutant | -8/Garrison Scavenger-Mutant | -8/Materials Sprinter | -8/Garrison Sprinter | -8/Materials Hacker-Sprinter | -7/Factory Hacker-Sprinter | -7/Garrison Hacker-Sprinter | -7/Factory Hacker-Sprinter | -7/Lower Caves Hacker-Sprinter | -7/Lower Caves Hacker-Sprinter | -7/Data Miner Hacker-Sprinter | -6/Proximity Caves Hacker-Sprinter | -6/Factory Hacker-Sprinter | -5/Factory Hacker-Sprinter | -5/Upper Caves Hacker-Sprinter | -5/Upper Caves Hacker-Sprinter | -5/Warlord Wizard-Sprinter | -4/Proximity Caves Wizard-Scout | -4/Factory Wizard-Sprinter | -4/Upper Caves Wizard-Sprinter | -4/Upper Caves Wizard-Sprinter | -4/Zhirov Wizard-Sprinter | -3/Proximity Caves Wizard-Scout | -3/Research Wizard-Sprinter | -2/Research Wizard-Sprinter | -2/Testing Wizard-Sprinter | -1/Access Wizard-Sprinter | -1/Command Resources | -11 -10 -10 -10 -9 -8 -8 -8 -8 -8 -7 -7 -7 -7 -7 -7 -6 -6 -5 -5 -5 -5 -4 -4 -4 -4 -4 -3 -3 -2 -2 -1 -1 ----------- Run | Yrd Mat Min Exi Min Mat Gar Mat Gar Mat Fac Gar Fac Low Low Dat Pro Fac Fac Upp Upp War Pro Fac Upp Upp Zhi Pro Res Res Tes Acc Com Matter Collected 4395 | 233 148 24 . 247 952 493 226 85 124 176 276 19 . 5 . 101 159 . . 77 . 60 . . . 50 . . 140 . 129 671 Remotely . | . . . . . . . . . . . . . . . . . . . . . . . . . . . . . . . . . Salvage Created 5202 | . 566 . . 143 1270 358 322 85 135 238 456 19 . . . . 57 . . . . . . . . 109 . . . . 35 1409 Parts 266 | . 40 . . 14 65 21 19 5 10 19 20 3 . . . . 5 . . . . . . . . 2 . . . . 1 42 Haulers Intercepted 2 | . . . . . 1 . . . . 1 . . . . . . . . . . . . . . . . . . . . . . Recyclers Shooed 6 | . 1 . . . 3 . 2 . . . . . . . . . . . . . . . . . . . . . . . . . Parts Field Recycled . | . . . . . . . . . . . . . . . . . . . . . . . . . . . . . . . . . Retrieved Matter . | . . . . . . . . . . . . . . . . . . . . . . . . . . . . . . . . . Parts Self-Destructed 5 | . . . . . . . . . . . . . . . . . . . 3 . . . . . . 2 . . . . . . Prevented 1 | . . . . . . . . . . . . . . . . . . . 1 . . . . . . . . . . . . . Parts Restored . | . . . . . . . . . . . . . . . . . . . . . . . . . . . . . . . . . Kills | -11 -10 -10 -10 -9 -8 -8 -8 -8 -8 -7 -7 -7 -7 -7 -7 -6 -6 -5 -5 -5 -5 -4 -4 -4 -4 -4 -3 -3 -2 -2 -1 -1 ------- Run | Yrd Mat Min Exi Min Mat Gar Mat Gar Mat Fac Gar Fac Low Low Dat Pro Fac Fac Upp Upp War Pro Fac Upp Upp Zhi Pro Res Res Tes Acc Com Combat Hostiles Destroyed 91 | . 15 . . 3 27 17 8 2 . 1 15 . . . . . . . . . . . . . . . . . . . . 3 Melee 17 | . . . . . 2 3 . 2 . 1 7 . . . . . . . . . . . . . . . . . . . . 2 Guns 44 | . 13 . . 3 25 . 3 . . . . . . . . . . . . . . . . . . . . . . . . . Cannons 27 | . . . . . . 14 5 . . . 8 . . . . . . . . . . . . . . . . . . . . . AOE 3 | . 2 . . . . . . . . . . . . . . . . . . . . . . . . . . . . . . 1 Classes Destroyed 14 | . 5 . . 1 5 . 1 . . . 1 . . . . . . . . . . . . . . . . . . . . 1 Worker 6 | . . . . . 1 . . . 2 . . . . . . . . . . . . . . . . . . . . . . 3 Builder 4 | . . . . . 1 . . . . 3 . . . . . . . . . . . . . . . . . . . . . . Tunneler 1 | . . . . 1 . . . . . . . . . . . . . . . . . . . . . . . . . . . . Hauler 2 | . . . . . 1 . . . . 1 . . . . . . . . . . . . . . . . . . . . . . Recycler 9 | . 1 . . . 4 . . . 1 1 . . . . . . . . . . . . . . . . . . . . . 2 Mechanic 1 | . . . . . . . 1 . . . . . . . . . . . . . . . . . . . . . . . . . Operator 5 | . 1 . . . 1 . . . 1 . . 1 . . . . 1 . . . . . . . . . . . . . . . Watcher 3 | . 1 . . . . . . . . . . . . . . . 1 . . . . . . . . . . . . . 1 . Swarmer 35 | . 6 . . . 13 8 . . . . 7 . . . . . . . . . . . . . . . . . . . . 1 Grunt 37 | . 9 . . 3 9 4 5 2 . . 5 . . . . . . . . . . . . . . . . . . . . . Brawler 4 | . . . . . 1 3 . . . . . . . . . . . . . . . . . . . . . . . . . . Sentry 10 | . . . . . 4 2 3 . . 1 . . . . . . . . . . . . . . . . . . . . . . Programmer 4 | . . . . . . . . . . . 3 . . . . . . . . . . . . . . . . . . . . 1 Behemoth 1 | . . . . . . . . . . . . . . . . . . . . . . . . . . . . . . . . 1 Best Kill Streak 6 | . 4 . . 3 6 5 4 2 2 4 4 1 . . . . 1 . . . . . . . . . . . . . 1 3 Combat Bots Only 5 | . 4 . . 3 5 5 4 2 . 1 4 . . . . . . . . . . . . . . . . . . . . 1 Max Kills in Single Turn 2 | . 1 . . 2 2 1 2 1 1 1 1 1 . . . . 1 . . . . . . . . . . . . . 1 1 Gunslinging 1 | . . . . 1 1 . . . . . . . . . . . . . . . . . . . . . . . . . . . Exploded 1 | . 1 . . . . . . . . . . . . . . . . . . . . . . . . . . . . . . 1 Melee 1 | . . . . . 1 1 . 1 . 1 1 . . . . . . . . . . . . . . . . . . . . 1 Uniques/NPCs Destroyed . | . . . . . . . . . . . . . . . . . . . . . . . . . . . . . . . . . Combat | -11 -10 -10 -10 -9 -8 -8 -8 -8 -8 -7 -7 -7 -7 -7 -7 -6 -6 -5 -5 -5 -5 -4 -4 -4 -4 -4 -3 -3 -2 -2 -1 -1 -------- Run | Yrd Mat Min Exi Min Mat Gar Mat Gar Mat Fac Gar Fac Low Low Dat Pro Fac Fac Upp Upp War Pro Fac Upp Upp Zhi Pro Res Res Tes Acc Com Hostile Shots Fired 912 | . 75 6 . 7 295 97 62 24 . 54 47 18 2 10 . . 1 . 2 . 1 . 3 9 . . 2 . . 2 62 133 Missed 308 | . 23 1 . . 72 21 18 13 . 27 16 11 1 5 . . . . 2 . 1 . 1 5 . . 1 . . 1 39 50 Intercepted 7 | . . . . . . . . . . . . . . . . . . . . . . . . . . . . . . . . 7 Hits 604 | . 52 5 . 7 223 76 44 11 . 27 31 7 1 5 . . 1 . . . . . 2 4 . . 1 . . 1 23 83 Melee 10 | . . . . . 6 . . 3 . . . . . . . . . . . . . . . . . . . . . . 1 . Projectile 594 | . 52 5 . 7 217 76 44 8 . 27 31 7 1 5 . . 1 . . . . . 2 4 . . 1 . . 1 22 83 AOE 17 | . . 9 . . . . . . . . . . . . . . . . . . . . . . . . . . . . . 8 Critical Strikes 30 | . 2 . . 1 13 2 3 1 . . 2 . . . . . . . . . . . . . . . . . . . 1 5 Actively Blocked 5 | . . . . . . . . . . . . . . . . . . . . . . . . . . . . . . . . 5 Part Disruptions 3 | . . . . . . . . . . . 1 . . . . . . . . . . . . . . . . . . . 1 1 Damage Taken 10452 | . 610 318 . 92 2934 935 636 184 . 225 477 50 14 49 . . 61 . . . . . 36 74 . . 20 46 . 27 664 3000 Core 2448 | . 84 35 . 13 307 117 78 45 . 129 182 11 . 32 . . 19 . . . . . . 30 . . 20 23 . 27 165 1131 Absorbed by Shields 52 | . . . . . . . . 18 . . . . . . . . . . . . . . . . . . . . . . . 34 Regen/Repaired (Parts) 368 | . . . . . 252 . . . . . . 66 . . . . 38 . . . 2 . . . . . . . 10 . . . Core Remaining (%) 70 | 100 . . . 47 . . . . . . . . . . . 49 97 . . . . 100 . . . . 95 98 . 98 . 19 Volleys Fired 437 | 1 54 4 . 4 129 84 34 . . . 42 . . . . . . . . . . . . . . . . 1 . . . 84 Largest 3 | 2 2 2 . 2 2 1 2 . . . 1 . . . . . . . . . . . . . . . . 1 . . . 3 Hottest 360 | 60 80 40 . 40 130 40 60 . . . 70 . . . . . . . . . . . . . . . . 300 . . . 360 Shots Fired 693 | 2 107 8 . 11 242 84 67 . . . 42 . . . . . . . . . . . . . . . . 1 . . . 129 Gun 469 | 2 107 8 . 11 237 . 46 . . . 24 . . . . . . . . . . . . . . . . 1 . . . 33 Cannon 218 | . . . . . 5 84 21 . . . 18 . . . . . . . . . . . . . . . . . . . . 90 Launcher 6 | . . . . . . . . . . . . . . . . . . . . . . . . . . . . . . . . 6 Special . | . . . . . . . . . . . . . . . . . . . . . . . . . . . . . . . . . Kinetic 468 | 1 50 8 . 11 205 84 67 . . . 42 . . . . . . . . . . . . . . . . . . . . . Thermal 142 | . 14 . . . 37 . . . . . . . . . . . . . . . . . . . . . . 1 . . . 90 Explosive 2 | . . . . . . . . . . . . . . . . . . . . . . . . . . . . . . . . 2 Electromagnetic 64 | 1 43 . . . . . . . . . . . . . . . . . . . . . . . . . . . . . . 20 Entropic 17 | . . . . . . . . . . . . . . . . . . . . . . . . . . . . . . . . 17 Robot Hit Streak 24 | 2 18 4 . 5 24 9 9 . . . 9 . . . . . . . . . . . . . . . . . . . . 6 Robot Miss Streak 7 | . 7 2 . 1 4 3 3 . . . 5 . . . . . . . . . . . . . . . . . . . . 5 Penetration Max 1 | . . . . . . 1 . . . . . . . . . . . . . . . . . . . . . . . . . . Secondary Targets 6 | . 2 . . 1 2 . 1 . . . . . . . . . . . . . . . . . . . . . . . . . Max Gunslinging Chain 1 | . 1 . . 1 1 . 1 . . . . . . . . . . . . . . . . . . . . . . . . . Capacitor 21 | . . . . . . . . . . . . . . . . . . . . . . . . . . . . . . . . 21 Shots Hit Robots 542 | 2 64 6 . 8 158 60 52 4 6 19 33 1 . . 1 . 7 2 . . . . 1 . . 1 . . 5 1 3 108 Core Hits 226 | 1 31 3 . 7 58 18 31 2 4 4 30 . . . . . 2 . . . . . . . . 1 . . . . 1 33 Critical Kills 2 | . . . . . 2 . . . . . . . . . . . . . . . . . . . . . . . . . . . Critical Parts Destroyed 3 | . . . . . . . . . . . . . . . . . . . . . . . . . . . . . . . . 3 Critical Strikes 29 | . 1 . . . 7 16 . . . . 1 . . . . . . . . . . . . . . . . . . . . 4 Burn 1 | . . . . . 1 . . . . . . . . . . . . . . . . . . . . . . . . . . . Destroy 3 | . . . . . 3 . . . . . . . . . . . . . . . . . . . . . . . . . . . Blast 15 | . . . . . 3 12 . . . . . . . . . . . . . . . . . . . . . . . . . . Corrupt 1 | . 1 . . . . . . . . . . . . . . . . . . . . . . . . . . . . . . . Sever 6 | . . . . . . 4 . . . . 1 . . . . . . . . . . . . . . . . . . . . 1 Detonate 3 | . . . . . . . . . . . . . . . . . . . . . . . . . . . . . . . . 3 Melee Attacks 556 | . . 2 . . 3 18 1 51 27 40 41 13 6 3 1 . 43 7 11 6 . . 8 1 . 1 4 8 7 11 103 140 Impact . | . . . . . . . . . . . . . . . . . . . . . . . . . . . . . . . . . Slashing 539 | . . . . . 3 18 1 51 27 37 41 13 6 3 . . 40 5 11 6 . . 7 1 . 1 4 8 2 11 103 140 Piercing . | . . . . . . . . . . . . . . . . . . . . . . . . . . . . . . . . . Sneak Attacks 36 | . . 1 . . . 1 . . 2 9 . 1 . . 1 . 5 2 . . . . 1 . . . . . 5 1 1 6 Combat Hostiles 2 | . . . . . . 1 . . . . . . . . . . . . . . . . . . . . . . . . . 1 Follow-up Attacks . | . . . . . . . . . . . . . . . . . . . . . . . . . . . . . . . . . Damage Inflicted 18235 | 29 919 87 . 121 2427 1983 841 211 363 1056 1122 80 . . . . 308 . . . . . . . . 62 . . . 107 202 8317 Guns 4653 | 22 676 82 . 119 2171 . 493 . . . 48 . . . . . . . . . . . . . . . . . . . . 1042 Cannons 2460 | . . . . . 113 1348 348 . . . 526 . . . . . . . . . . . . . . . . . . . . 125 Explosions 705 | . 243 . . . . . . . . . . . . . . . . . . . . . . . . . . . . . . 462 Melee 10403 | . . . . . 143 635 . 211 363 1056 548 80 . . . . 308 . . . . . . . . 62 . . . 107 202 6688 Ramming 14 | 7 . 5 . 2 . . . . . . . . . . . . . . . . . . . . . . . . . . . . Kinetic 5092 | 10 249 82 . 119 1869 1348 841 . . . 574 . . . . . . . . . . . . . . . . . . . . . Thermal 1115 | . 299 . . . 415 . . . . . . . . . . . . . . . . . . . . . . . . . . 401 Explosive . | . . . . . . . . . . . . . . . . . . . . . . . . . . . . . . . . . Electromagnetic 620 | 12 371 . . . . . . . . . . . . . . . . . . . . . . . . . . . . . . 237 Impact . | . . . . . . . . . . . . . . . . . . . . . . . . . . . . . . . . . Slashing 10403 | . . . . . 143 635 . 211 363 1056 548 80 . . . . 308 . . . . . . . . 62 . . . 107 202 6688 Piercing . | . . . . . . . . . . . . . . . . . . . . . . . . . . . . . . . . . Entropic 991 | . . . . . . . . . . . . . . . . . . . . . . . . . . . . . . . . 991 Highest Corruption 19 | . . 6 6 6 5 5 5 5 5 . 2 2 1 1 1 1 . . . . . . . . . . . . . . 4 19 Average Corruption 6 | . . 6 6 6 3 5 5 5 5 . 1 1 1 1 1 1 . . . . . . . . . . . . . . 3 12 Corruption Purged 2 | . . . . . . . . . . . . 2 . . . . . . . . . . . . . . . . . . . . Corruption Blocked . | . . . . . . . . . . . . . . . . . . . . . . . . . . . . . . . . . Effects 316 | . . 5 35 43 24 28 11 10 9 . 12 4 . 1 . 1 . . . . . . . . . . . . . . 28 105 Message Errors 78 | . . 1 11 8 4 8 3 6 2 . 4 2 . . . . . . . . . . . . . . . . . . 7 22 Matter Fused 64 | . . 2 5 13 3 7 3 1 2 . 1 . . . . 1 . . . . . . . . . . . . . . 5 21 Heat Flow Errors 42 | . . . 3 4 4 1 1 3 1 . 2 . . . . . . . . . . . . . . . . . . . 9 14 Energy Discharges 42 | . . 1 7 2 3 4 2 . 2 . 3 . . 1 . . . . . . . . . . . . . . . . 3 14 Parts Rejected 4 | . . . . . 2 1 . . . . . . . . . . . . . . . . . . . . . . . . . 1 Parts Fused 3 | . . . 1 . . 1 . . . . . . . . . . . . . . . . . . . . . . . . . 1 Data Loss (minor) 30 | . . 1 5 6 . 4 . . 2 . . 1 . . . . . . . . . . . . . . . . . . 3 8 Data Loss (major) 23 | . . . 2 4 3 . . . . . 2 1 . . . . . . . . . . . . . . . . . . 1 10 Misfires 9 | . . . . 4 2 1 . . . . . . . . . . . . . . . . . . . . . . . . . 2 Alerts 8 | . . . 1 1 . . 1 . . . . . . . . . . . . . . . . . . . . . . . . 5 Misdirections 2 | . . . . . . . . . . . . . . . . . . . . . . . . . . . . . . . . 2 Weapon Failures 11 | . . . . 1 3 1 1 . . . . . . . . . . . . . . . . . . . . . . . . 5 Overload Shots . | . . . . . . . . . . . . . . . . . . . . . . . . . . . . . . . . . Overflow Damage 868 | . 13 . . . 10 41 . 9 48 258 26 50 . . . . 40 . . . . . . . . . . . . 37 24 312 Projectiles 26 | . . . . . 10 16 . . . . . . . . . . . . . . . . . . . . . . . . . . Explosions 45 | . 13 . . . . . . . . . . . . . . . . . . . . . . . . . . . . . . 32 Melee 797 | . . . . . . 25 . 9 48 258 26 50 . . . . 40 . . . . . . . . . . . . 37 24 280 Knockbacks 18 | . . . . . 2 4 9 . . . 3 . . . . . . . . . . . . . . . . . . . . . Impact . | . . . . . . . . . . . . . . . . . . . . . . . . . . . . . . . . . Kinetic 18 | . . . . . 2 4 9 . . . 3 . . . . . . . . . . . . . . . . . . . . . Secondary . | . . . . . . . . . . . . . . . . . . . . . . . . . . . . . . . . . Self-Inflicted Damage 222 | . 94 . . . . . . . . . . . . . . . . . . . . . . . . . . 46 . . . 82 Shots 7 | . 3 . . . . . . . . . . . . . . . . . . . . . . . . . . 2 . . . 2 Rammed 4 | 1 . 2 . 1 . . . . . . . . . . . . . . . . . . . . . . . . . . . . Targets Rammed 4 | 1 . 2 . 1 . . . . . . . . . . . . . . . . . . . . . . . . . . . . Kicked . | . . . . . . . . . . . . . . . . . . . . . . . . . . . . . . . . . Crushed . | . . . . . . . . . . . . . . . . . . . . . . . . . . . . . . . . . Highest Temperature 394 | 20 162 15 272 168 273 153 129 176 118 11 227 7 . 4 . . 52 . . . 1 1 8 16 . . . 222 10 . 394 301 Average Temperature 71 | 15 46 6 105 69 77 64 45 79 63 5 44 4 . 4 . . 26 . . . 1 1 8 12 . . . 103 3 . 109 89 Received Heat Transfer 2643 | . 168 18 . 69 1341 360 378 27 . 78 90 12 . 21 . . 9 . . . . . . . . . . . . 9 18 45 Effects 1 | . . . . . . . . . . . 1 . . . . . . . . . . . . . . . . . . . . . Interference 1 | . . . . . . . . . . . 1 . . . . . . . . . . . . . . . . . . . . . Siege Activations . | . . . . . . . . . . . . . . . . . . . . . . . . . . . . . . . . . Martial Activations . | . . . . . . . . . . . . . . . . . . . . . . . . . . . . . . . . . Shielding Activations . | . . . . . . . . . . . . . . . . . . . . . . . . . . . . . . . . . Robots Disrupted . | . . . . . . . . . . . . . . . . . . . . . . . . . . . . . . . . . Combat Hostiles . | . . . . . . . . . . . . . . . . . . . . . . . . . . . . . . . . . Robots Corrupted . | . . . . . . . . . . . . . . . . . . . . . . . . . . . . . . . . . Combat Hostiles . | . . . . . . . . . . . . . . . . . . . . . . . . . . . . . . . . . Parts Fried . | . . . . . . . . . . . . . . . . . . . . . . . . . . . . . . . . . Impact Corruptions . | . . . . . . . . . . . . . . . . . . . . . . . . . . . . . . . . . Robots Melted . | . . . . . . . . . . . . . . . . . . . . . . . . . . . . . . . . . Combat Hostiles . | . . . . . . . . . . . . . . . . . . . . . . . . . . . . . . . . . Parts Melted 2 | . . . . . 2 . . . . . . . . . . . . . . . . . . . . . . . . . . . Heat Transferred 1963 | . 625 . . . 1110 . . . . . . . . . . . . . . . . . . . . . . . . . . 228 Parts Sabotaged 3 | . . . . . . . . . . . . . . . . . . . . . . . . . . . . . . . 3 . Parts Stolen . | . . . . . . . . . . . . . . . . . . . . . . . . . . . . . . . . . Parts Stripped . | . . . . . . . . . . . . . . . . . . . . . . . . . . . . . . . . . Power Chain Reactions 7 | . 5 . . . . . . . . . . . . . . . . . . . . . . . . . . . . . . 2 Alert | -11 -10 -10 -10 -9 -8 -8 -8 -8 -8 -7 -7 -7 -7 -7 -7 -6 -6 -5 -5 -5 -5 -4 -4 -4 -4 -4 -3 -3 -2 -2 -1 -1 ------- Run | Yrd Mat Min Exi Min Mat Gar Mat Gar Mat Fac Gar Fac Low Low Dat Pro Fac Fac Upp Upp War Pro Fac Upp Upp Zhi Pro Res Res Tes Acc Com Maximum Alert Level 5 | . . . . . . 3 2 1 . . 3 2 . . . . . . . . . . 1 . . . . . . 5 5 4 Low Security (%) 62 | 100 100 100 . 100 100 24 78 24 100 100 8 98 . . . . 100 100 . . . . . . . . . 100 100 . . 24 Level 1 12 | . . . . . . 29 . 75 . . 16 . . . . . . . . . . . 100 . . . . . . . . 39 Level 2 12 | . . . . . . 15 21 . . . 59 1 . . . . . . . . . . . . . . . . . . 21 26 Level 3 5 | . . . . . . 30 . . . . 15 . . . . . . . . . . . . . . . . . . . 20 1 Level 4 6 | . . . . . . . . . . . . . . . . . . . . . . . . . . . . . . . 50 7 Level 5 . | . . . . . . . . . . . . . . . . . . . . . . . . . . . . . . . . . High Security . | . . . . . . . . . . . . . . . . . . . . . . . . . . . . . . . . . Max Security 1 | . . . . . . . . . . . . . . . . . . . . . . . . . . . . . . 99 7 . Peak Influence 2005 | . 163 48 . 64 167 914 445 247 116 70 933 504 . . . . 51 30 . . . . 300 . . . . 28 35 1714 2005 1310 Initial 1292 | . . 27 . . 3 79 445 104 115 7 40 489 . . . . . 18 . . . . 300 . . . . . 15 . 1100 1292 Average 274 | . 58 1 . 6 54 467 166 201 46 24 525 10 . . . . 7 8 . . . . 284 . . . . 6 2 1609 1058 412 Influence Increases 6531 | . 469 56 . 75 733 895 235 163 76 327 933 92 . . . . 181 40 45 . . . 344 15 . 5 . 60 33 114 1240 400 Destroy 0b10 Robot/C 1860 | . 300 40 . 60 540 340 160 40 . 20 300 . . . . . . . . . . . . . . . . . . . . 60 Destroy 0b10 Robot/NC 180 | . 15 . . 5 40 . 5 . 20 25 . 5 . . . . 10 . . . . . . . . 5 . . . . 5 45 Destroy Leader 300 | . 62 10 . 10 102 20 50 . . 12 20 . . . . . 2 . . . . . . . . . . . . . 2 10 Allied During Kill 6 | . . 6 . . . . . . . . . . . . . . . . . . . . . . . . . . . . . . Trap Triggered on 0b10 10 | . . . . . . . . . . . 10 . . . . . . . . . . . . . . . . . . . . . Successful Hack 232 | . 21 . . . 17 . 4 . 7 54 6 46 . . . . 14 . . . . . . . . . . 12 . . 45 6 Disable Machine 240 | . 60 . . . . 60 . 15 15 . 30 . . . . . 15 . . . . . . . . . . . 15 15 . 15 Anti-Garrison Action 450 | . . . . . . 100 . 50 . . 300 . . . . . . . . . . . . . . . . . . . . . Destroy Structure 793 | . 11 . . . 4 30 1 28 19 21 147 11 . . . . 35 10 . . . . 14 . . . . 18 3 24 288 129 Advance Influence 300 | . . . . . . . . . . . . . . . . . . . . . . . 300 . . . . . . . . . Partial Spotted 270 | . . . . . . . . . 15 60 . . . . . . 15 . . . . . . . . . . . 15 . 90 75 Lose Combat Pursuer 1590 | . . . . . 30 345 15 30 . 135 120 30 . . . . 90 30 45 . . . 30 15 . . . 30 . 75 510 60 Miscellaneous 300 | . . . . . . . . . . . . . . . . . . . . . . . . . . . . . . . 300 . Influence Decreases 8895 | . 397 128 . 65 621 103 989 86 296 286 58 1025 . . . . 143 48 61 14 . . 50 160 59 95 . 32 61 . 1850 2268 Entered New Map 2906 | . . 45 . . 7 43 469 56 122 10 18 444 . . . . . 20 12 4 . . . 110 29 90 . . 13 . 686 728 Time Decay 3224 | . 377 35 . 65 431 . 170 . 174 276 . 77 . . . . 143 28 49 10 . . 50 50 30 5 . 32 48 . 514 660 Lost Part 703 | . 20 10 . . 183 60 50 30 . . 30 . . . . . . . . . . . . . . . . . . . 50 270 Lost Ally 58 | . . 38 . . . . . . . . 10 . . . . . . . . . . . . . . . . . . . . 10 Purge Threat 2004 | . . . . . . . 300 . . . . 504 . . . . . . . . . . . . . . . . . . 600 600 Squads Dispatched 66 | . 4 . . . 7 . 3 . 2 6 . 4 . . . . 5 . . . . . . . . . . . . 10 12 13 Investigation 10 | . 2 . . . 1 . . . . 3 . 2 . . . . 1 . . . . . . . . . . . . . 1 . Extermination 19 | . . . . . . . . . . 2 . 2 . . . . 1 . . . . . . . . . . . . . 5 9 Reinforcement 12 | . 2 . . . . . 2 . 2 . . . . . . . 3 . . . . . . . . . . . . . 2 1 Assault 14 | . . . . . . . . . . . . . . . . . . . . . . . . . . . . . . 7 4 3 Garrison 11 | . . . . . 6 . 1 . . 1 . . . . . . . . . . . . . . . . . . . 3 . . Intercept . | . . . . . . . . . . . . . . . . . . . . . . . . . . . . . . . . . Searches Triggered . | . . . . . . . . . . . . . . . . . . . . . . . . . . . . . . . . . Data Miner Redirects 7 | . . . . . . . . . . . . . . . . . . . . . . . . . . . . . . . 4 3 Construction Impeded . | . . . . . . . . . . . . . . . . . . . . . . . . . . . . . . . . . Haulers Reinforced 1 | . . . . . . . . . . . . . . . . . 1 . . . . . . . . . . . . . . . Active Scanning Responses . | . . . . . . . . . . . . . . . . . . . . . . . . . . . . . . . . . Cargo Convoy Interrupts . | . . . . . . . . . . . . . . . . . . . . . . . . . . . . . . . . . Stealth | -11 -10 -10 -10 -9 -8 -8 -8 -8 -8 -7 -7 -7 -7 -7 -7 -6 -6 -5 -5 -5 -5 -4 -4 -4 -4 -4 -3 -3 -2 -2 -1 -1 --------- Run | Yrd Mat Min Exi Min Mat Gar Mat Gar Mat Fac Gar Fac Low Low Dat Pro Fac Fac Upp Upp War Pro Fac Upp Upp Zhi Pro Res Res Tes Acc Com Distress Signals 32 | . 1 . . . 3 5 2 . . 1 . . . . . . 3 . . . . . 1 . . . . 1 10 3 . 2 Communications Jammed . | . . . . . . . . . . . . . . . . . . . . . . . . . . . . . . . . . Distress Signals . | . . . . . . . . . . . . . . . . . . . . . . . . . . . . . . . . . Times Spotted 339 | . 24 5 . 3 32 37 13 8 5 17 21 5 2 2 . . 12 3 3 . 4 2 6 6 . . 3 3 23 10 47 43 Peak Tracking Total 20 | . 5 2 . 3 6 7 6 6 3 5 6 2 1 1 . . 4 3 2 . 4 2 5 10 . . 3 3 6 5 20 6 Tactical Retreats 55 | . . . . . 2 14 1 1 . 6 4 2 . . . . 3 1 2 . . . 1 1 . . . 2 . 1 10 4 Traps | -11 -10 -10 -10 -9 -8 -8 -8 -8 -8 -7 -7 -7 -7 -7 -7 -6 -6 -5 -5 -5 -5 -4 -4 -4 -4 -4 -3 -3 -2 -2 -1 -1 ------- Run | Yrd Mat Min Exi Min Mat Gar Mat Gar Mat Fac Gar Fac Low Low Dat Pro Fac Fac Upp Upp War Pro Fac Upp Upp Zhi Pro Res Res Tes Acc Com Traps Triggered 31 | . 2 . . . . 1 . 6 . 2 5 . . . . . 2 . . . . . . . . . . . . . 4 9 Indirectly 1 | . . . . . . . . . . . . . . . . . . . . . . . . . . . . . . . . 1 Trap Hack Attempts 27 | . . . . . . . . . . . 21 6 . . . . . . . . . . . . . . . . . . . . Triggered . | . . . . . . . . . . . . . . . . . . . . . . . . . . . . . . . . . Disarmed . | . . . . . . . . . . . . . . . . . . . . . . . . . . . . . . . . . Reprogrammed 5 | . . . . . . . . . . . 4 1 . . . . . . . . . . . . . . . . . . . . Reused 1 | . . . . . . . . . . . 1 . . . . . . . . . . . . . . . . . . . . . Traps Extracted . | . . . . . . . . . . . . . . . . . . . . . . . . . . . . . . . . . Installed . | . . . . . . . . . . . . . . . . . . . . . . . . . . . . . . . . . Triggered 1 | . . . . . . . . . . . 1 . . . . . . . . . . . . . . . . . . . . . Machines | -11 -10 -10 -10 -9 -8 -8 -8 -8 -8 -7 -7 -7 -7 -7 -7 -6 -6 -5 -5 -5 -5 -4 -4 -4 -4 -4 -3 -3 -2 -2 -1 -1 ---------- Run | Yrd Mat Min Exi Min Mat Gar Mat Gar Mat Fac Gar Fac Low Low Dat Pro Fac Fac Upp Upp War Pro Fac Upp Upp Zhi Pro Res Res Tes Acc Com Machines Disabled 24 | . 4 . . . . 6 . 3 1 . 6 . . . . . 1 . . . . . . . . . . . 1 1 . 1 Max in Single Turn 2 | . 2 . . . . 2 . 1 1 . 1 . . . . . 1 . . . . . . . . . . . 1 1 . 1 Garrison Access 13 | . . . . . . . . . . . . . . . . . 2 . . . . . 1 . . . . 1 3 . 6 . Garrison Relay 6 | . . . . . . 2 . 1 . . 3 . . . . . . . . . . . . . . . . . . . . . Machines Repaired . | . . . . . . . . . . . . . . . . . . . . . . . . . . . . . . . . . Machines Dismantled . | . . . . . . . . . . . . . . . . . . . . . . . . . . . . . . . . . Machines Sabotaged . | . . . . . . . . . . . . . . . . . . . . . . . . . . . . . . . . . Overloaded Fab Kills . | . . . . . . . . . . . . . . . . . . . . . . . . . . . . . . . . . Hacking | -11 -10 -10 -10 -9 -8 -8 -8 -8 -8 -7 -7 -7 -7 -7 -7 -6 -6 -5 -5 -5 -5 -4 -4 -4 -4 -4 -3 -3 -2 -2 -1 -1 --------- Run | Yrd Mat Min Exi Min Mat Gar Mat Gar Mat Fac Gar Fac Low Low Dat Pro Fac Fac Upp Upp War Pro Fac Upp Upp Zhi Pro Res Res Tes Acc Com Machines Accessed 109 | . 6 . 2 . 6 2 3 . 1 16 2 12 1 . 3 . 11 3 2 . 2 . 4 . . 4 . 3 4 . 14 8 Terminals 66 | . 6 . . . 4 2 2 . 1 10 2 6 . . . . 7 3 . . . . 2 . . . . 2 3 . 8 8 Fabricators 9 | . . . . . . . . . . 4 . 3 . . . . 1 . . . . . 1 . . . . . . . . . Repair Stations 4 | . . . . . 1 . . . . . . 2 . . . . 1 . . . . . . . . . . . . . . . Recycling Units . | . . . . . . . . . . . . . . . . . . . . . . . . . . . . . . . . . Scanalyzers 2 | . . . . . . . . . . 1 . 1 . . . . . . . . . . . . . . . . . . . . Garrison Access 14 | . . . . . 1 . 1 . . 1 . . . . . . 2 . . . . . 1 . . . . 1 1 . 6 . Total Hacks 291 | . 14 . 2 . 16 2 11 . 1 39 4 37 1 . 25 . 28 7 4 . 2 . 7 . . 16 . 6 17 . 33 19 Successful 216 | . 10 . 2 . 9 1 6 . 1 28 1 30 1 . 25 . 24 6 4 . 2 . 5 . . 16 . 4 6 . 22 13 Failed 75 | . 4 . . . 7 1 5 . . 11 3 7 . . . . 4 1 . . . . 2 . . . . 2 11 . 11 6 Catastrophic 13 | . . . . . . 1 2 . . 1 . 1 . . . . . . . . . . . . . . . . 2 . 4 2 Database Lockouts . | . . . . . . . . . . . . . . . . . . . . . . . . . . . . . . . . . Manual 147 | . 14 . 1 . 6 . 4 . 1 19 . 16 . . . . 19 5 . . 1 . 3 . . . . 5 12 . 23 18 Terminals 179 | . 14 . . . 6 2 10 . 1 25 4 22 . . . . 18 7 . . . . 5 . . . . 5 14 . 27 19 Fabricators 25 | . . . . . . . . . . 10 . 8 . . . . 6 . . . . . 1 . . . . . . . . . Repair Stations 13 | . . . . . 7 . . . . . . 4 . . . . 2 . . . . . . . . . . . . . . . Recycling Units . | . . . . . . . . . . . . . . . . . . . . . . . . . . . . . . . . . Scanalyzers 6 | . . . . . . . . . . 3 . 3 . . . . . . . . . . . . . . . . . . . . Garrison Access 18 | . . . . . 3 . 1 . . 1 . . . . . . 2 . . . . . 1 . . . . 1 3 . 6 . Terminal Hacks 102 | . 2 . 2 . . 1 4 . 1 6 1 8 1 . 25 . 4 1 4 . 2 . 1 . . 16 . 2 4 . 11 6 Record 10 | . . . 1 . . . . . . . . . . . 2 . . . 3 . . . . . . 4 . . . . . . Part Schematic 17 | . . . . . . . . . . . . . . . 13 . . . . . . . . . . 4 . . . . . . Robot Schematic 7 | . . . . . . . . . . . . . . . 7 . . . . . . . . . . . . . . . . . Robot Analysis 6 | . . . . . . . . . . . . . . . . . . . . . . . . . . 4 . . 2 . . . Prototype ID Bank 7 | . . . . . . . . . . . . . . . 3 . . . . . . . . . . 4 . . . . . . Open Door 4 | . . . . . . . . . . . . . 1 . . . . . 1 . 2 . . . . . . . . . . . Open DSF 1 | . . . . . . . . . . 1 . . . . . . . . . . . . . . . . . . . . . . Level Access Points 2 | . . . . . . . . . 1 . . . . . . . . . . . . . . . . . . 1 . . . . Branch Access Points 7 | . . . . . . . . . . . . 1 . . . . 1 1 . . . . 1 . . . . 1 1 . 1 . Emergency Access Points 3 | . . . . . . . . . . . 1 . . . . . . . . . . . . . . . . . 1 . . 1 Terminal Index 2 | . . . . . . . . . . . . . . . . . 1 . . . . . . . . . . . . . 1 . Garrison Index 2 | . . . . . . . . . . 1 . . . . . . . . . . . . . . . . . . . . 1 . Unreport Threat 14 | . . . . . . . 2 . . . . 4 . . . . . . . . . . . . . . . . . . 4 4 Locate Traps 2 | . . . . . . . . . . . . 1 . . . . 1 . . . . . . . . . . . . . . . Recall Investigation 1 | . . . . . . . 1 . . . . . . . . . . . . . . . . . . . . . . . . . Recall Extermination 5 | . . . . . . . . . . 1 . . . . . . . . . . . . . . . . . . . . 4 . Hauler Manifests 6 | . 2 . . . . . 1 . . 1 . 1 . . . . 1 . . . . . . . . . . . . . . . Registered Components 2 | . . . . . . . . . . 1 . 1 . . . . . . . . . . . . . . . . . . . . Registered Prototypes 1 | . . . . . . . . . . 1 . . . . . . . . . . . . . . . . . . . . . . Garrison Registry 1 | . . . . . . 1 . . . . . . . . . . . . . . . . . . . . . . . . . . Proto ID Catalog 1 | . . . 1 . . . . . . . . . . . . . . . . . . . . . . . . . . . . . Disengage Seal 1 | . . . . . . . . . . . . . . . . . . . . . . . . . . . . . . . . 1 Fabricator Hacks 16 | . . . . . . . . . . 7 . 5 . . . . 3 . . . . . 1 . . . . . . . . . Network Status 5 | . . . . . . . . . . 2 . 1 . . . . 1 . . . . . 1 . . . . . . . . . Load Schematic 6 | . . . . . . . . . . 3 . 2 . . . . 1 . . . . . . . . . . . . . . . Build 5 | . . . . . . . . . . 2 . 2 . . . . 1 . . . . . . . . . . . . . . . Repair Station Hacks 11 | . . . . . 5 . . . . . . 4 . . . . 2 . . . . . . . . . . . . . . . Scan Component 6 | . . . . . 3 . . . . . . 2 . . . . 1 . . . . . . . . . . . . . . . Repair 5 | . . . . . 2 . . . . . . 2 . . . . 1 . . . . . . . . . . . . . . . Recycling Unit Hacks . | . . . . . . . . . . . . . . . . . . . . . . . . . . . . . . . . . Scanalyzer 5 | . . . . . . . . . . 2 . 3 . . . . . . . . . . . . . . . . . . . . Insert Component 2 | . . . . . . . . . . 1 . 1 . . . . . . . . . . . . . . . . . . . . Analyze 1 | . . . . . . . . . . 1 . . . . . . . . . . . . . . . . . . . . . . Retrieve Study 2 | . . . . . . . . . . . . 2 . . . . . . . . . . . . . . . . . . . . Garrison Access Hacks 14 | . . . . . 1 . 1 . . 1 . . . . . . 2 . . . . . 1 . . . . 1 1 . 6 . Unlock Access 3 | . . . . . 1 . 1 . . 1 . . . . . . . . . . . . . . . . . . . . . . Seal Access 11 | . . . . . . . . . . . . . . . . . 2 . . . . . 1 . . . . 1 1 . 6 . Unauthorized Hacks 68 | . 8 . . . 3 . 1 . . 12 . 10 . . . . 13 5 . . . . 2 . . . . 1 1 . 5 7 Terminals 61 | . 8 . . . 3 . 1 . . 9 . 7 . . . . 12 5 . . . . 2 . . . . 1 1 . 5 7 Assimilate 11 | . . . . . 1 . . . . 2 . 1 . . . . 4 1 . . . . . . . . . . . . 1 1 Botnet 35 | . 3 . . . . . 1 . . 6 . 3 . . . . 5 3 . . . . 2 . . . . 1 1 . 4 6 Operators 3 | . . . . . . . . . . 1 . 1 . . . . 1 . . . . . . . . . . . . . . . Skim 12 | . 5 . . . 2 . . . . . . 2 . . . . 2 1 . . . . . . . . . . . . . . Fabricators 7 | . . . . . . . . . . 3 . 3 . . . . 1 . . . . . . . . . . . . . . . Prioritize 4 | . . . . . . . . . . 2 . 1 . . . . 1 . . . . . . . . . . . . . . . Recompile 3 | . . . . . . . . . . 1 . 2 . . . . . . . . . . . . . . . . . . . . Repair Stations . | . . . . . . . . . . . . . . . . . . . . . . . . . . . . . . . . . Recycling Units . | . . . . . . . . . . . . . . . . . . . . . . . . . . . . . . . . . Scanalyzers . | . . . . . . . . . . . . . . . . . . . . . . . . . . . . . . . . . Garrison Access . | . . . . . . . . . . . . . . . . . . . . . . . . . . . . . . . . . Data Cores Recovered 2 | . . . . . 1 . . . 1 . . . . . . . . . . . . . . . . . . . . . . . Used . | . . . . . . . . . . . . . . . . . . . . . . . . . . . . . . . . . Hacking Detections 66 | . 3 . . . 5 1 3 . . 14 2 9 . . . . 5 3 . . . . 1 . . . . 1 3 . 8 8 Full Trace Events 3 | . . . . . 1 . . . . 1 1 . . . . . . . . . . . . . . . . . . . . . Feedback Events 1 | . . . . . 1 . . . . . . . . . . . . . . . . . . . . . . . . . . . Corruption 1 | . . . . . 1 . . . . . . . . . . . . . . . . . . . . . . . . . . . Feedback Blocked . | . . . . . . . . . . . . . . . . . . . . . . . . . . . . . . . . . Robot Schematics Acquired 7 | . . . . . . . . . . . . . . . 7 . . . . . . . . . . . . . . . . . Robots Built . | . . . . . . . . . . . . . . . . . . . . . . . . . . . . . . . . . Authchips . | . . . . . . . . . . . . . . . . . . . . . . . . . . . . . . . . . Time . | . . . . . . . . . . . . . . . . . . . . . . . . . . . . . . . . . Total Robot Build Rating . | . . . . . . . . . . . . . . . . . . . . . . . . . . . . . . . . . Part Schematics Acquired 18 | . . . . . . . . . . 1 . . . . 13 . . . . . . . . . . 4 . . . . . . Parts Built 4 | . . . . . . . . . . 2 . 1 . . . . 1 . . . . . . . . . . . . . . . Authchips 3 | . . . . . . . . . . 1 . 1 . . . . 1 . . . . . . . . . . . . . . . Time 224 | . . . . . . . . . . 100 . 91 . . . . 33 . . . . . . . . . . . . . . . Total Part Build Rating 16 | . . . . . . . . . . 8 . 4 . . . . 4 . . . . . . . . . . . . . . . Part Studies Acquired 1 | . . . . . . . . . . . . 1 . . . . . . . . . . . . . . . . . . . . Parts Repaired 5 | . . . . . 2 . . . . . . 2 . . . . 1 . . . . . . . . . . . . . . . Time 138 | . . . . . 52 . . . . . . 42 . . . . 44 . . . . . . . . . . . . . . . Parts Recycled . | . . . . . . . . . . . . . . . . . . . . . . . . . . . . . . . . . Recycled Matter . | . . . . . . . . . . . . . . . . . . . . . . . . . . . . . . . . . Retrieved Matter . | . . . . . . . . . . . . . . . . . . . . . . . . . . . . . . . . . Retrieved Components . | . . . . . . . . . . . . . . . . . . . . . . . . . . . . . . . . . Parts Scanalyzed 1 | . . . . . . . . . . 1 . . . . . . . . . . . . . . . . . . . . . . Part Schematics Acquired 1 | . . . . . . . . . . 1 . . . . . . . . . . . . . . . . . . . . . . Parts Damaged . | . . . . . . . . . . . . . . . . . . . . . . . . . . . . . . . . . Bothacking | -11 -10 -10 -10 -9 -8 -8 -8 -8 -8 -7 -7 -7 -7 -7 -7 -6 -6 -5 -5 -5 -5 -4 -4 -4 -4 -4 -3 -3 -2 -2 -1 -1 ------------ Run | Yrd Mat Min Exi Min Mat Gar Mat Gar Mat Fac Gar Fac Low Low Dat Pro Fac Fac Upp Upp War Pro Fac Upp Upp Zhi Pro Res Res Tes Acc Com Used RIF Installer . | . . . . . . . . . . . . . . . . . . . . . . . . . . . . . . . . . Robots Hacked 11 | . . 1 . . . . . . . 2 . . . . 1 . 2 . . . . . 1 . . . . . 4 . . . Non-combat 5 | . . . . . . . . . . 2 . . . . . . 2 . . . . . 1 . . . . . . . . . Combat 6 | . . 1 . . . . . . . . . . . . 1 . . . . . . . . . . . . . 4 . . . Robot Hacks Applied 12 | . . 1 . . . . . . . 3 . . . . 1 . 2 . . . . . 1 . . . . . 4 . . . parse_system 7 | . . 1 . . . . . . . 1 . . . . 1 . . . . . . . . . . . . . 4 . . . no_distress 1 | . . . . . . . . . . 1 . . . . . . . . . . . . . . . . . . . . . . find_chute 3 | . . . . . . . . . . 1 . . . . . . 1 . . . . . 1 . . . . . . . . . check_alert 1 | . . . . . . . . . . . . . . . . . 1 . . . . . . . . . . . . . . . Relay Couplers Released 27 | . . . . . . 8 . 3 . . 13 . . . . . . . . . . . . . . . . . 3 . . . Machine Destruction 27 | . . . . . . 8 . 3 . . 13 . . . . . . . . . . . . . . . . . 3 . . . Fabnet Peak Effective % . | . . . . . . . . . . . . . . . . . . . . . . . . . . . . . . . . . Robots Rewired 2 | . . . . . . . . . . . . . . . . . . 1 . . . . . . . . . . 1 . . . Allies Hacked . | . . . . . . . . . . . . . . . . . . . . . . . . . . . . . . . . . Hacks Repelled . | . . . . . . . . . . . . . . . . . . . . . . . . . . . . . . . . . Allies | -11 -10 -10 -10 -9 -8 -8 -8 -8 -8 -7 -7 -7 -7 -7 -7 -6 -6 -5 -5 -5 -5 -4 -4 -4 -4 -4 -3 -3 -2 -2 -1 -1 -------- Run | Yrd Mat Min Exi Min Mat Gar Mat Gar Mat Fac Gar Fac Low Low Dat Pro Fac Fac Upp Upp War Pro Fac Upp Upp Zhi Pro Res Res Tes Acc Com Total Allies 9 | . . 3 . . . . . . . 1 . 1 . . . . . 1 . . . . . . . . . . 1 . 1 1 Largest Group 2 | . . 2 . . . . . . . 1 1 1 . . . . . 1 . . . . . . . . . . 1 . 1 1 Highest-Rated Group 64 | . . 42 . . . . . . . 10 10 10 . . . . . 29 . . . . . . . . . . 64 . 26 45 Highest-Rated Ally 64 | . . 31 . . . . . . . 10 10 10 . . . . . 29 . . . . . . . . . . 64 . 26 45 Initial Warlord ECA Mod 15 | . . . . . . . 4 4 7 6 6 15 15 15 15 14 14 8 8 8 8 7 7 7 7 7 6 6 5 5 4 4 Warlord Squad Rendezvous 5 | . . . . . . . . . . . . . . . . . 5 . . . . . . . . . . . . . . . Dakka 1 | . . . . . . . . . . . . . . . . . 1 . . . . . . . . . . . . . . . Infantry 1 | . . . . . . . . . . . . . . . . . 1 . . . . . . . . . . . . . . . Ranger 2 | . . . . . . . . . . . . . . . . . 2 . . . . . . . . . . . . . . . Pyro 1 | . . . . . . . . . . . . . . . . . 1 . . . . . . . . . . . . . . . Total Orders 7 | . . . . . . . . . . 2 3 . . . . . . . . . . . . . . . . . . . 1 1 STAY 5 | . . . . . . . . . . 1 2 . . . . . . . . . . . . . . . . . . . 1 1 FOLLOW 2 | . . . . . . . . . . 1 1 . . . . . . . . . . . . . . . . . . . . . Ally Attacks 12 | . . 10 . . . . . . . . . . . . . . . . . . . . . . . . . . 2 . . . Total Damage 223 | . . 187 . . . . . . . . . . . . . . . . . . . . . . . . . . 36 . . . Kills 2 | . . 2 . . . . . . . . . . . . . . . . . . . . . . . . . . . . . . Allies Corrupted . | . . . . . . . . . . . . . . . . . . . . . . . . . . . . . . . . . Allies Melted 1 | . . . . . . . . . . . . . . . . . 1 . . . . . . . . . . . . . . . Intel | -11 -10 -10 -10 -9 -8 -8 -8 -8 -8 -7 -7 -7 -7 -7 -7 -6 -6 -5 -5 -5 -5 -4 -4 -4 -4 -4 -3 -3 -2 -2 -1 -1 ------- Run | Yrd Mat Min Exi Min Mat Gar Mat Gar Mat Fac Gar Fac Low Low Dat Pro Fac Fac Upp Upp War Pro Fac Upp Upp Zhi Pro Res Res Tes Acc Com Active Infowar (turns) 5593 | . . . . . 593 . . . . . . . . . . . 255 . 648 923 186 80 55 105 73 53 111 137 309 125 1532 408 Optics 2345 | . . . . . . . . . . . . . . . . . . . . . . . . . . . . . 280 125 1532 408 Sensors 2429 | . . . . . . . . . . . . . . . . . 29 . 648 923 186 80 55 105 73 53 111 137 29 . . . Seismic 593 | . . . . . 593 . . . . . . . . . . . . . . . . . . . . . . . . . . . T.N.C. 226 | . . . . . . . . . . . . . . . . . 226 . . . . . . . . . . . . . . . Robot Analysis Total 6 | . . . . . . . . . . . . . . . . . . . . . . . . . . 4 . . 2 . . . Derelict Logs Recovered 12 | . . 3 . 3 . . . . . . . . 2 . . 1 . . . . . . . 2 1 . . . . . . . Drone Launches . | . . . . . . . . . . . . . . . . . . . . . . . . . . . . . . . . . Drone Recoveries . | . . . . . . . . . . . . . . . . . . . . . . . . . . . . . . . . . Exploration | -11 -10 -10 -10 -9 -8 -8 -8 -8 -8 -7 -7 -7 -7 -7 -7 -6 -6 -5 -5 -5 -5 -4 -4 -4 -4 -4 -3 -3 -2 -2 -1 -1 ------------- Run | Yrd Mat Min Exi Min Mat Gar Mat Gar Mat Fac Gar Fac Low Low Dat Pro Fac Fac Upp Upp War Pro Fac Upp Upp Zhi Pro Res Res Tes Acc Com Turns Passed 19779 | 108 1110 778 1266 1199 1381 996 345 497 452 859 1233 648 187 145 22 61 788 87 648 923 186 80 116 114 73 55 111 137 1024 125 1532 2493 Spaces Moved 25073 | 63 549 423 790 730 553 484 105 328 457 1976 1338 1582 634 330 88 243 1683 293 649 627 671 338 377 367 316 180 290 442 1319 178 3345 3325 Core 12 | 11 . . . . . . . . . . . . . . . . . . . . . . . . . . . . . . . 1 Treads 3107 | 52 549 423 790 730 253 204 105 1 . . . . . . . . . . . . . . . . . . . . . . . . Legs 62 | . . . . . 62 . . . . . . . . . . . . . . . . . . . . . . . . . . . Wheels 518 | . . . . . 238 280 . . . . . . . . . . . . . . . . . . . . . . . . . . Hover . | . . . . . . . . . . . . . . . . . . . . . . . . . . . . . . . . . Flight 21374 | . . . . . . . . 327 457 1976 1338 1582 634 330 88 243 1683 293 649 627 671 338 377 367 316 180 290 442 1319 178 3345 3324 Fastest Speed 5 | 50 160 160 160 160 115 130 160 31 31 28 26 24 24 24 24 24 14 24 24 24 23 23 14 14 23 23 14 20 17 6 5 21 Average Speed 43 | 140 160 164 160 160 151 142 160 31 31 29 26 24 24 24 24 24 23 24 24 24 23 23 22 22 23 23 22 20 18 16 16 27 Slowest Speed 260 | 160 160 240 160 160 260 160 240 160 31 31 31 24 24 24 24 24 25 24 24 24 24 23 23 23 23 23 23 23 20 17 82 199 Overloaded Moves 106 | . . . . . . . . . . . . . . . . . 8 . . . . . 4 3 . . 7 . . 6 78 . Propulsion Burnouts . | . . . . . . . . . . . . . . . . . . . . . . . . . . . . . . . . . Robots Hopped 104 | . . . . . . . . . 3 29 . 16 . . . . 12 2 . . . . 7 1 . . . 1 10 . 21 2 Potential Cave-ins 5 | . . . . . . . . . . . . . . . . . . . . . . . . . . . . . . . . 5 Cave-ins Triggered 1 | . . . . . . . . . . . . . . . . . . . . . . . . . . . . . . . . 1 Exploration Rate (%) 50 | 5 86 82 91 99 26 37 15 45 24 45 87 23 77 48 75 55 48 11 68 62 85 52 16 53 59 57 46 12 37 31 60 45 Regions Visited 32 Branch Regions 17 Pre-discovered Areas 7 | . . . 1 . . . . . . . . . 2 . 1 . . . . . . . . . . 3 . . . . . . Known Exits Taken 19 | . . . . . 1 . 1 . 1 1 . 1 . . . . 1 1 1 1 1 1 1 1 1 1 1 1 1 . 1 . Unknown Exits Taken 10 | 1 1 1 1 1 . . . . . . . . 1 1 1 1 . . . . . . . . . . . . . 1 . . Scrap Searched 19 | . . 3 . 2 . . . . . . . . 1 . . 2 . . 1 3 . 2 . 1 2 . 2 . . . . . Spaces Dug 304 | . . . . . . . 1 23 20 21 8 11 5 3 . . 35 5 11 6 . . 7 1 . . 3 8 1 8 97 30 Terrain Destroyed 334 | . 10 . . . 2 3 1 23 20 21 8 11 5 3 . . 35 5 11 6 . . 7 1 . . 3 8 1 8 97 45 Melee 303 | . . . . . . . 1 23 20 21 7 11 5 3 . . 35 5 11 6 . . 7 1 . . 3 8 1 8 97 30 Projectile 7 | . . . . . 2 3 . . . . 1 . . . . . . . . . . . . . . . . . . . . 1 AOE 24 | . 10 . . . . . . . . . . . . . . . . . . . . . . . . . . . . . . 14 Terrain Rammed . | . . . . . . . . . . . . . . . . . . . . . . . . . . . . . . . . . Walls Destroyed . | . . . . . . . . . . . . . . . . . . . . . . . . . . . . . . . . . Machines Disabled . | . . . . . . . . . . . . . . . . . . . . . . . . . . . . . . . . . Actions | -11 -10 -10 -10 -9 -8 -8 -8 -8 -8 -7 -7 -7 -7 -7 -7 -6 -6 -5 -5 -5 -5 -4 -4 -4 -4 -4 -3 -3 -2 -2 -1 -1 --------- Run | Yrd Mat Min Exi Min Mat Gar Mat Gar Mat Fac Gar Fac Low Low Dat Pro Fac Fac Upp Upp War Pro Fac Upp Upp Zhi Pro Res Res Tes Acc Com Total 32491 | 80 683 497 794 753 854 687 210 673 737 2182 2130 1814 656 390 88 244 1995 299 1123 1389 701 339 388 394 315 190 328 475 2090 256 4143 4594 Wait 5903 | . 53 49 . 15 76 83 56 228 248 173 601 209 10 58 . 2 260 . 462 757 9 2 11 26 . . 35 13 752 68 698 949 Move 24840 | 63 548 422 789 729 552 483 105 327 450 1919 1331 1549 633 329 87 242 1660 288 648 626 670 337 364 364 315 179 289 439 1302 177 3305 3319 Hop 92 | . . . . . . . . . 3 28 . 16 . . . . 10 2 . . . . 5 1 . . . 1 6 . 18 2 Pick Up 158 | 10 16 4 1 1 36 8 4 2 4 8 6 10 . . . . 7 1 . . 5 . . 1 . 2 . 6 5 . 3 18 Fast Attach 55 | . 2 . . . 6 . 1 . 1 . 3 . 2 . . . 1 . . . 4 . . . . 2 . . 4 . 6 23 Attach 118 | 6 2 3 1 3 25 6 4 5 2 4 7 1 . . . . 5 1 1 . 1 . . . . 1 . 4 4 . 5 27 Detach 26 | . . 1 3 . 2 . . . . 1 4 . . . . . . . . . . . . . . . . . . . 1 14 Swap 55 | . 4 4 . . 11 3 4 1 . . 6 5 4 . . . 4 . 1 . 1 . . . . 2 . . 2 . 2 1 Drop 100 | . 4 6 . . 14 2 1 7 2 1 8 5 1 . . . 5 . . . 11 . . 1 . 3 . 3 8 . 2 16 Fire 437 | 1 54 4 . 4 129 84 34 . . . 42 . . . . . . . . . . . . . . . . 1 . . . 84 Melee 556 | . . 2 . . 3 18 1 51 27 40 41 13 6 3 1 . 43 7 11 6 . . 8 1 . 1 4 8 7 11 103 140 Ram . | . . . . . . . . . . . . . . . . . . . . . . . . . . . . . . . . . Kick . | . . . . . . . . . . . . . . . . . . . . . . . . . . . . . . . . . Crush 3 | . . 2 . 1 . . . . . . . . . . . . . . . . . . . . . . . . . . . . Escape Stasis 121 | . . . . . . . . 52 . 8 60 . . . . . . . . . . . . . . . . . . . . 1 Rewire . | . . . . . . . . . . . . . . . . . . . . . . . . . . . . . . . . . Trap 27 | . . . . . . . . . . . 21 6 . . . . . . . . . . . . . . . . . . . . Miscellaneous . | . . . . . . . . . . . . . . . . . . . . . . . . . . . . . . . . . Route ------- -11/Scrapyard -10/Materials (discovered 5 exits: [*Mat x3] / [*Min x2]) -10/Mines (discovered 4 exits: [*Mat x2] / *Exi / [*Sub]) -10/Exiles -9/Mines (discovered 2 exits: *Mat x2) -8/Materials (discovered 2 exits: *Fac / Gar) -8/Garrison (discovered 3 exits: *Mat x3) -8/Materials -8/Garrison -8/Materials (discovered 3 exits: *Fac x3) -7/Factory -7/Garrison (discovered 3 exits: *Fac x3) -7/Factory (discovered 2 exits: *Low x2) -7/Lower Caves -7/Lower Caves -7/Data Miner -6/Proximity Caves -6/Factory (discovered 5 exits: *Fac x3 / Low x2) -5/Factory (discovered 2 exits: *Upp x2) -5/Upper Caves -5/Upper Caves (discovered 2 exits: *Fac / *War) -5/Warlord -4/Proximity Caves -4/Factory (discovered 5 exits: *Res / *Upp x2 / *Ext x2) -4/Upper Caves -4/Upper Caves -4/Zhirov -3/Proximity Caves -3/Research (discovered 6 exits: *Res x3 / Arm / Qua x2) -2/Research (discovered 2 exits: *Tes x2) -2/Testing -1/Access -1/Command To Epsilon Eridani History --------- Turn | Location | Event 6 | -11/Scrapyard | Discovered new exit (range 14) 109 | -11/Scrapyard | Entered Materials 137 | -10/Materials | Discovered new exit (range 15) 300 | -10/Materials | Build established: Mutant 342 | -10/Materials | Discovered new exit (range 10) 581 | -10/Materials | Discovered new exit (range 5) 944 | -10/Materials | Discovered new exit (range 8) 1115 | -10/Materials | Discovered new exit (range 6) 1219 | -10/Materials | Entered Mines 1348 | -10/Mines | Received a Mining Laser from a helpful Derelict 1460 | -10/Mines | Learned Materials garrison access intel 1485 | -10/Mines | Learned location of 1 exit from Materials 1573 | -10/Mines | Joined a pair of Derelicts in attacking an 0b10 outpost 1657 | -10/Mines | Discovered new exit (range 6) 1688 | -10/Mines | Discovered new exit (range 14) 1721 | -10/Mines | Learned Materials garrison access intel 1793 | -10/Mines | Assembled infested the area 1813 | -10/Mines | Met 8R-AWN 1893 | -10/Mines | Discovered new exit (range 5) 1953 | -10/Mines | Lost 3 parts (1n1u1w) 1987 | -10/Mines | Discovered new exit (range 5) 1997 | -10/Mines | Entered Exiles 2036 | -10/Exiles | Welcomed by 8R-AWN 2065 | -10/Exiles | Met EX-HEX 2110 | -10/Exiles | Met EX-BIN 2235 | -10/Exiles | Met EX-DEC 2427 | -10/Exiles | Visited The Gauntlet 2629 | -10/Exiles | Learned location of Zion (-6) 2715 | -10/Exiles | Discovered new exit (range 14) 2832 | -10/Exiles | Aligned with FarCom system 2834 | -10/Exiles | Given EX-Vault access code 2896 | -10/Exiles | Learned about 8R-AWN's background 2987 | -10/Exiles | Opened EX-Vault 2998 | -10/Exiles | Found Longsword +1 3031 | -10/Exiles | Warned to stay clear of 0b10 Research branches 3263 | -10/Exiles | Left Exiles lab with Longsword +1 3263 | -10/Exiles | Entered Mines 3427 | -9/Mines | Learned Materials terminal intel 3597 | -9/Mines | Discovered new exit (range 7) 3768 | -9/Mines | Discovered new exit (range 9) 3783 | -9/Mines | Received a Rocket Launcher from a helpful Derelict 4257 | -9/Mines | Core integrity fell below 50% 4462 | -9/Mines | Entered Materials 4462 | -8/Materials | Evolved 4 slots: Propulsion x2, Utility x2 4463 | -8/Materials | Identified exit to Factory 4464 | -8/Materials | Loaded intel: 12 terminal locations 4465 | -8/Materials | Loaded intel: 1 garrison access location 4600 | -8/Materials | Identified exit to Garrison 4658 | -8/Materials | Garrison activated, responded to threat 4775 | -8/Materials | Repaired Lgt. Treads 4810 | -8/Materials | Repaired Lgt. Treads 5040 | -8/Materials | Garrison activated, responded to threat 5072 | -8/Materials | Lost 3 parts (1p1n1w) 5208 | -8/Materials | Lost 9 parts (1p4n2u2w) 5359 | -8/Materials | Lost 3 parts (2n1w) 5530 | -8/Materials | Core integrity fell below 50% 5662 | -8/Materials | Build established: Scavenger-Mutant 5843 | -8/Materials | Entered Garrison 5868 | -8/Garrison | Discovered new exit (range 44) 5868 | -8/Garrison | Discovered new exit (range 43) 5868 | -8/Garrison | Discovered new exit (range 64) 5949 | -8/Garrison | Garrison Relay disabled 6216 | -8/Garrison | Triggered checkpoint 6408 | -8/Garrison | Triggered checkpoint 6727 | -8/Garrison | Garrison Relay disabled 6839 | -8/Garrison | Entered Materials 6840 | -8/Materials | Loaded intel: 1 garrison access location 7013 | -8/Materials | Core integrity fell below 20% 7078 | -8/Materials | Lost 5 parts (1p3n1w) 7130 | -8/Materials | Garrison activated, responded to threat 7184 | -8/Materials | Identified exit to Garrison 7184 | -8/Materials | Entered Garrison 7290 | -8/Garrison | Triggered checkpoint 7293 | -8/Garrison | Garrison Relay disabled 7482 | -8/Garrison | Build established: Sprinter 7598 | -8/Garrison | Triggered checkpoint 7679 | -8/Garrison | Discovered new exit (range 8) 7681 | -8/Garrison | Entered Materials 8133 | -8/Materials | Entered Factory 8133 | -7/Factory | Evolved 2 slots: Propulsion x1, Utility x1 8417 | -7/Factory | Build established: Hacker-Sprinter 8661 | -7/Factory | Fabricated Cld. VTOL Module? 8880 | -7/Factory | Fabricated Cld. VTOL Module (x1) 8982 | -7/Factory | Garrison activated, responded to threat 8988 | -7/Factory | Identified exit to Garrison 8992 | -7/Factory | Entered Garrison 8992 | -7/Garrison | Accompanied by 1 ally 9050 | -7/Garrison | Triggered checkpoint 9095 | -7/Garrison | Garrison Relay disabled 9395 | -7/Garrison | Discovered new exit (range 8) 9397 | -7/Garrison | Attempted to access garrison exit controls, blocked by remote lockdown 9541 | -7/Garrison | Discovered new exit (range 12) 9544 | -7/Garrison | Attempted to access garrison exit controls, blocked by remote lockdown 9728 | -7/Garrison | Garrison Relay disabled 9740 | -7/Garrison | Triggered checkpoint 9772 | -7/Garrison | Triggered checkpoint 10076 | -7/Garrison | Triggered checkpoint 10118 | -7/Garrison | Garrison Relay disabled 10223 | -7/Garrison | Discovered new exit (range 8) 10225 | -7/Garrison | Entered Factory 10248 | -7/Factory | Repaired Imp. Flight Unit 10362 | -7/Factory | Discovered new exit (range 8) 10373 | -7/Factory | Identified exit to Lower Caves 10494 | -7/Factory | Repaired Imp. Flight Unit? 10544 | -7/Factory | Fabricated Cld. VTOL Module? 10873 | -7/Factory | Entered Lower Caves 10933 | -7/Lower Caves | Met a Warlord Commander 10934 | -7/Lower Caves | Learned location of Warlord (-5) 10935 | -7/Lower Caves | Warlord Commander delivered Encrypted Comm Array 10935 | -7/Lower Caves | Found Unknown Device 10935 | -7/Lower Caves | Identified Encrypted Comm Array 10975 | -7/Lower Caves | Learned Factory security intel 11047 | -7/Lower Caves | Discovered new exit (range 4) 11060 | -7/Lower Caves | Entered another Lower Caves area 11088 | -7/Lower Caves | Encountered a Warlord checkpoint 11146 | -7/Lower Caves | Attracted the attention of an 0b10 checkpoint 11197 | -7/Lower Caves | Core integrity fell below 50% 11203 | -7/Lower Caves | Discovered new exit (range 11) 11205 | -7/Lower Caves | Entered Data Miner 11205 | -7/Data Miner | Discovered new exit (range 6) 11210 | -7/Data Miner | Met Data Miner 11220 | -7/Data Miner | Learned location of Section 7 (-2) 11220 | -7/Data Miner | Acquired the access code to Warlord's prototype stash 11222 | -7/Data Miner | Received God Mode back door access code from Data Miner 11227 | -7/Data Miner | Entered Proximity Caves 11228 | -6/Proximity Caves | Learned 8 Factory zone layouts 11287 | -6/Proximity Caves | Discovered new exit (range 5) 11288 | -6/Proximity Caves | Entered Factory 11288 | -6/Factory | Evolved 2 slots: Utility x2 11289 | -6/Factory | Identified exit to Factory 11377 | -6/Factory | Joined by Warlord Ranger squad 11468 | -6/Factory | Joined by Warlord Infantry squad 11514 | -6/Factory | Fabricated Cld. VTOL Module? 11534 | -6/Factory | Joined by Warlord Pyro squad 11585 | -6/Factory | Joined by Warlord Ranger squad 11612 | -6/Factory | Joined by Warlord Dakka squad 11634 | -6/Factory | Discovered exit to Factory (range 7) 11719 | -6/Factory | Repaired Mic. Nuclear Core 11744 | -6/Factory | Identified exit to Lower Caves 12031 | -6/Factory | Discovered exit to Factory (range 12) 12076 | -6/Factory | Entered another Factory area 12076 | -5/Factory | Evolved 2 slots: Power x1, Utility x1 12103 | -5/Factory | Identified exit to Upper Caves 12163 | -5/Factory | Entered Upper Caves 12196 | -5/Upper Caves | Attracted the attention of an 0b10 checkpoint 12805 | -5/Upper Caves | Entered an active Warlord outpost 12807 | -5/Upper Caves | Learned Armory trap positions 12807 | -5/Upper Caves | Learned Armory emergency access door positions 12810 | -5/Upper Caves | Discovered new exit (range 5) 12811 | -5/Upper Caves | Identified exit to Upper Caves 12811 | -5/Upper Caves | Entered another Upper Caves area 12817 | -5/Upper Caves | Discovered new exit (range 13) 12866 | -5/Upper Caves | Spotted B-75 Beast 13731 | -5/Upper Caves | Discovered new exit (range 9) 13734 | -5/Upper Caves | Identified exit to Warlord 13734 | -5/Upper Caves | Entered Warlord 13826 | -5/Warlord | Opened Warlord's prototype stash 13831 | -5/Warlord | Found Ghost Barrier 13844 | -5/Warlord | Met Warlord 13854 | -5/Warlord | Found Prototype Energy Gun 13858 | -5/Warlord | Warlord's base attacked by MAIN.C 13876 | -5/Warlord | Found Prototype Energy Cannon 13876 | -5/Warlord | Identified Vortex Driver 13881 | -5/Warlord | Found Prototype Energy Gun 13881 | -5/Warlord | Identified Vortex Shotgun 13888 | -5/Warlord | Found Vortex Shotgun 13910 | -5/Warlord | Opened side exit 13919 | -5/Warlord | Discovered new exit (range 9) 13920 | -5/Warlord | Identified exit to Proximity Caves 13920 | -5/Warlord | Entered Proximity Caves 13978 | -4/Proximity Caves | Spotter reported a threat 13979 | -4/Proximity Caves | Spotter reported a threat 13997 | -4/Proximity Caves | Discovered new exit (range 13) 14000 | -4/Proximity Caves | Identified exit to Factory 14000 | -4/Proximity Caves | Entered Factory 14000 | -4/Factory | Evolved 2 slots: Weapon x2 14035 | -4/Factory | Discovered new exit (range 15) 14038 | -4/Factory | Identified exit to Research 14038 | -4/Factory | Discovered new exit (range 15) 14042 | -4/Factory | Identified exit to Extension 14062 | -4/Factory | Identified exit to Upper Caves 14116 | -4/Factory | Entered Upper Caves 14117 | -4/Upper Caves | Found DCF Scrap (14 items) 14175 | -4/Upper Caves | Spotted B-86 Titan 14218 | -4/Upper Caves | Learned Research trap positions 14220 | -4/Upper Caves | Learned Research terminal intel 14229 | -4/Upper Caves | Discovered new exit (range 8) 14230 | -4/Upper Caves | Identified exit to Upper Caves 14230 | -4/Upper Caves | Entered another Upper Caves area 14237 | -4/Upper Caves | Learned location of 1 exit from Research 14301 | -4/Upper Caves | Discovered new exit (range 10) 14303 | -4/Upper Caves | Identified exit to Zhirov 14303 | -4/Upper Caves | Entered Zhirov 14303 | -4/Zhirov | Discovered new exit (range 3) 14312 | -4/Zhirov | Learned location of Quarantine (-3) 14312 | -4/Zhirov | Learned location of Testing (-2) 14312 | -4/Zhirov | Learned location of Command (-1) 14318 | -4/Zhirov | Found Alien Artifact 14318 | -4/Zhirov | Identified Integrated Reactor 14318 | -4/Zhirov | Installed Integrated Reactor, increased core energy generation (+10) 14357 | -4/Zhirov | Identified exit to Proximity Caves 14358 | -4/Zhirov | Entered Proximity Caves 14414 | -3/Proximity Caves | Build established: Wizard-Sprinter 14466 | -3/Proximity Caves | Discovered exit to Research (range 15) 14469 | -3/Proximity Caves | Entered Research 14469 | -3/Research | Evolved 2 slots: Propulsion x1, Weapon x1 14470 | -3/Research | Identified exit to Research 14471 | -3/Research | Loaded intel: 98 trap records 14471 | -3/Research | Identified Plasma Storm 14472 | -3/Research | Loaded intel: 25 terminal locations 14567 | -3/Research | Identified exit to Armory 14567 | -3/Research | Identified exit to Quarantine 14606 | -3/Research | Entered another Research area 14606 | -2/Research | Warlord forces began assault on 0b10 14606 | -2/Research | Evolved 2 slots: Propulsion x1, Utility x1 14623 | -2/Research | Met up with Warlord 14631 | -2/Research | Distinguished unit "Department No. 42" dispatched to help 14636 | -2/Research | Identified exit to Testing 14716 | -2/Research | Research machine network offline 14765 | -2/Research | Build established: Wizard-Scout 14877 | -2/Research | Lost 10 allies 14978 | -2/Research | Found Quantum Capacitor 15248 | -2/Research | Build established: Wizard-Sprinter 15253 | -2/Research | Borebot progress halted 15271 | -2/Research | Spotted Striker 15277 | -2/Research | Borebot progress halted 15328 | -2/Research | Spotted Executioner 15335 | -2/Research | Spotted Executioner 15374 | -2/Research | Lost 4 allies 15460 | -2/Research | Spotted Striker 15461 | -2/Research | Spotted Executioner 15477 | -2/Research | Borebot progress halted 15501 | -2/Research | Lost 5 allies 15606 | -2/Research | Warlord invited to help at Command 15606 | -2/Research | Given Cave Seal Controls access code 15630 | -2/Research | Entered Testing 15631 | -2/Testing | Maximum security lockdown engaged 15633 | -2/Testing | Lost 3 allies 15755 | -2/Testing | Discovered new exit (range 5) 15755 | -2/Testing | Entered Access 15755 | -1/Access | Evolved 2 slots: Utility x2 15928 | -1/Access | Lost 5 allies 15933 | -1/Access | Identified exit to Command 15956 | -1/Access | Incoming investigation squad redirected 16005 | -1/Access | First assault squad dispatched 16239 | -1/Access | Spotted B-99 Colossus 16273 | -1/Access | Incoming assault squad redirected 16280 | -1/Access | Incoming assault squad redirected 16778 | -1/Access | Incoming assault squad redirected 17050 | -1/Access | Spotted B-99 Colossus 17169 | -1/Access | Spotted B-99 Colossus 17170 | -1/Access | Maximum security lockdown engaged 17287 | -1/Access | Entered Command 17311 | -1/Command | Lost 3 parts (2n1w) 17384 | -1/Command | Spotted B-99 Colossus 17537 | -1/Command | First assault squad dispatched 17554 | -1/Command | Incoming assault squad redirected 17645 | -1/Command | Found Gamma Bomb Array 17675 | -1/Command | Disengaged cave seal 17675 | -1/Command | Derelicts emerged from the dark tunnel 17675 | -1/Command | Welcomed Warlord to Command 17750 | -1/Command | Lost 4 allies 17866 | -1/Command | Destroyed B-99 Colossus 17900 | -1/Command | P-80 Master assimilated allied DU-QU9(g) 17920 | -1/Command | Lost 3 parts (1p2u) 17957 | -1/Command | Lost 5 allies 17960 | -1/Command | Lost 3 parts (1p1n1w) 18002 | -1/Command | Warlord commented on Warlord statues 18002 | -1/Command | Spotted M Guard 18003 | -1/Command | Spotted Combat Programmer 18004 | -1/Command | Spotted Combat Programmer 18009 | -1/Command | Spotted M Guard 18013 | -1/Command | System corruption reached 10% 18025 | -1/Command | Core integrity fell below 50% 18058 | -1/Command | Incoming assault squad redirected 18063 | -1/Command | All MAIN.C guards destroyed 18070 | -1/Command | Found Prototype Reactor 18072 | -1/Command | Lost 13 parts (1p7n2u3w) 18164 | -1/Command | Incoming assault squad redirected 18289 | -1/Command | Build established: Hacker-Mutant 18504 | -1/Command | Identified Zero-point Reactor 19292 | -1/Command | Build established: Wizard-Sprinter 19377 | -1/Command | Found Fusion Bomb Launcher 19453 | -1/Command | Disengaged cave seal 19453 | -1/Command | Derelicts emerged from the dark tunnel 19538 | -1/Command | Spotted Alpha 7 19538 | -1/Command | Spotted Alpha 7 19538 | -1/Command | Spotted Striker 19538 | -1/Command | Spotted Striker 19538 | -1/Command | Spotted Executioner 19538 | -1/Command | Spotted Executioner 19538 | -1/Command | Spotted Executioner 19538 | -1/Command | Spotted Executioner 19601 | -1/Command | Warlord destroyed during the assault 19639 | -1/Command | Spotted B-99 Colossus 19640 | -1/Command | Spotted B-99 Colossus 19658 | -1/Command | Lost 16 allies 19689 | -1/Command | Lost 3 parts (1n2u) 19761 | -1/Command | Lost 4 allies 19774 | -1/Command | Crushed by falling debris 19778 | -1/Command | Core integrity fell below 20% 19778 | -1/Command | Discovered new exit (range 8) 19780 | *** | Escaped! Last Messages --------------- Field strength at 50. Penetrated by Slug. Slug penetrates Earth. Slug penetrates Wall. Stasis field depleted. Triggered Stasis Trap. A bubble of rippling energy engulfs the area. Field strength at 50. K-01 Serf collects debris. Stasis field depleted. The Access Shell folds into the floor. Triggered Stasis Trap. EXIT=FOUND A bubble of rippling energy engulfs the area. Field strength at 50. Stasis field depleted. Triggered Stasis Trap. A bubble of rippling energy engulfs the area. Field strength at 50. Stasis field depleted. Map ----- +----------------------------------------------------+ | + # ! ## #?????????????????????? | | # # [ % ## #?????????????????????? | | # # " ## #?????????????????????? | | # # "" ## #?????????????????????? | | # # """ #########?????????????????????? | | # # "" #?????????????????????????????? | | # # = #?????????????????????????????? | | # # #?????????????????????????????? | | " # #?????????????????????????????? | | #= # ""T"" #?????????????????????????????? | | ####### """"" #?????????????????????????????? | | ###"################?????????????????????????????? | | ## #?????????????????????????????????????????? | | ## #?????????????????????????????????????????? | | ?# #?????????????????????????????????????????? | | ?# #?????????????????????????????????????????? | | ?# #?????????????????????????????????????????? | | ?# #?????????????????????????????????????????? | | ?# ##????????????????????????????????????????? | | ?# % "#?????????##############?????????????????? | | ?# ##?????????# #?????????????????? | | ## ############ #?????????????????? | | # [ % " # # # #?????????????????? | | # %!%% %^ ^ #?????????????????? | | !%*%= %!% % #?????????????????? | | =][==% %%^= k% "@ #?????????????????? | | *=%= [%=*^! ^ "" #?????????????????? | | !!% =!=%"%%^ #?????????????????? | | [%!%%!""" ^ #?????????????????? | | ! #### #%# # # #?????????????????? | | %%% ##?#########BB #?????????????????? | | ** ##??????????#BB #?????????????????? | | %% #??????????##############?????????????????? | | =" ###?????????????????????????????????????????? | | ]""""##########??????????????????????????????????? | | #??????????????????????????????????? | | #??????????????????????????????????? | | #??????????????????????????????????? | | " #??????????????????????????????????? | | #??????????????????????????????????? | | #??????????????????????????????????? | | #"#####+#"#####??????????????????????????????????? | | ##### ##??????????????????????????????????????? | | ###?????????????????????????????????????? | | = #?????????????????????????????????????? | | ##### ###?????????????????????????????????????? | | ##+########??????????????????????????????????? | | # #???????????????????????????????? | | # ![ #???????????????????????????????? | | # ![ #???????????????????????????????? | +----------------------------------------------------+ Best States ------------- Heat Dissipation 83 Coolant Potential 200 Energy Generation 43 Energy Capacity 350 Matter Stores 300 Matter Capacity 300 Sight Range 23 Robot Scan Range 16 Terrain Scan Density 10 Additional Mass Support 20 Armor Coverage 300 Point Defense Rating 240 Evasion (%) 74 Target Analysis 8 Recoil Reduction 4 Particle Charging 20 Offensive Hacking 67 Defensive Hacking 20 Authchip Count 1 Item Schematics ----------------- Cld. VTOL Module | -7/Factory | Scanalyzed Combat Drone Bay | -7/Data Miner | Free Lgt. Regenerative Plating | -7/Data Miner | Free Cld. Aerolev Unit | -7/Data Miner | Free Gravity Neutralizer | -7/Data Miner | Free Cld. Plasma Cannon | -7/Data Miner | Free Thunder Leg | -7/Data Miner | Free Imp. Kinecellerator | -7/Data Miner | Free Enh. Gauss Cannon | -7/Data Miner | Free Phase Shifter | -7/Data Miner | Free Imp. Plasma Cutter | -7/Data Miner | Free Adv. Plasma Cannon | -7/Data Miner | Free Imp. Linear Gravjet | -7/Data Miner | Free Field Propulsion Array | -7/Data Miner | Free Assault Drone Bay | -4/Zhirov | Free Exp. Heat Sink | -4/Zhirov | Free Exp. Optical Array | -4/Zhirov | Free Imp. Arc Thrower | -4/Zhirov | Free Robot Schematics ------------------ G-50 Soldier | -7/Data Miner | Free E-15 Imp | -7/Data Miner | Free A-15 Conveyor | -7/Data Miner | Free G-47 Trooper | -7/Data Miner | Free S-27 Virus | -7/Data Miner | Free Y-64 Sentinel | -7/Data Miner | Free R-10 Processor | -7/Data Miner | Free Fabricated ------------ Cld. VTOL Module | x1 | -7/Factory Cld. VTOL Module | x1 | -7/Factory | Authchip Cld. VTOL Module | x1 | -7/Factory | Authchip Cld. VTOL Module | x1 | -6/Factory | Authchip Repaired ---------- Lgt. Treads | 7% | -8/Materials Lgt. Treads | 12% | -8/Materials Imp. Flight Unit | 17% | -7/Factory Imp. Flight Unit | 17% | -7/Factory Mic. Nuclear Core | 24% | -6/Factory Studied --------- Cesium-ion Thruster | -7/Factory | Hacked Alien Tech Used ----------------- Integrated Reactor Achievements -------------- About That Survey... Bullet Installation Fearless For Science! I Like You, Cogmind Insider Info Oppo Buddy Showdown Shutout Squad Leader Welcome To The Revolution Challenges ------------ None Game ------ Seed ClaymoresIonicProcessor Manual? 0 Play Time 05:01:21 Cumulative 333.7 hours Start 2025.10.31 @ 14:53:27 End 2025.11.01 @ 13:46:21 Sessions 15 Manual Loads 0 Difficulty Rogue Special Mode None Game No. 250 Rogue 250 Adventurer 0 Explorer 0 Win Type 0 Total 26 Types 13/1/7/2/1/0/0/1/0/1 Lore% 95 Gallery% 88 Achievement% 63 Wizard Run 0 Options --------- Layout 1 ASCII 0 Keyboard 0 Movement Numpad Keybinds 0 Fullscreen 1 Font 24/Proggy Map View 50x35 Zoom Use 0% Tactical HUD 0 Map Filters NONE Filters NONE Steam 1 RUN: 89d0b8a5-999e-4a6f-aaf2-95e050a359db